bitfinex-derivatives/quotes_BTCF0:USTF0_20210108
["timestamp","ask_amount","ask_price","bid_price","bid_amount"]
[1610146542732,0.13632608,40602.0,40601.0,0.00023466]
[1610146542931,0.13632608,40602.0,40599.0,0.00023466]
[1610146543231,0.13632608,40602.0,40601.0,0.00023466]
[1610146543432,0.13632608,40602.0,40600.0,0.00023466]
[1610146543830,0.13632608,40602.0,40594.0,0.01638429]
[1610146543831,0.13632608,40602.0,40601.0,0.00023466]
[1610146544232,0.13632608,40602.0,40594.0,0.01661895]
[1610146544433,0.13632608,40595.0,40594.0,0.01661895]
[1610146544634,0.13632608,40595.0,40594.0,0.01638429]
[1610146544934,0.13632608,40595.0,40594.0,0.55641896]
[1610146548339,0.13632608,40595.0,40594.0,0.01661896]
[1610146549342,0.13632608,40595.0,40594.0,0.00023467]
[1610146549541,0.13632608,40595.0,40593.0,0.10469]
[1610146549742,0.13632608,40595.0,40594.0,0.00023473]
[1610146550344,0.13632608,40595.0,40593.0,0.11178]
[1610146550545,0.13632608,40595.0,40594.0,0.00023473]
[1610146550746,0.13632608,40595.0,40594.0,0.01662479]
[1610146551444,0.13632608,40595.0,40594.0,0.57603473]
[1610146552346,0.13632608,40595.0,40594.0,0.00023473]
[1610146555351,0.13632608,40595.0,40594.0,0.01662778]
[1610146559258,0.13632608,40595.0,40594.0,2.86472778]
[1610146559858,0.13632608,40595.0,40594.0,2.90204747]
[1610146560560,0.13632608,40595.0,40594.0,3.03837355]
[1610146562562,0.13632608,40602.0,40594.0,3.03837355]
[1610146562963,0.13632608,40602.0,40595.0,0.05393352]
[1610146564665,0.13632608,40596.0,40595.0,0.05393352]
[1610146566069,0.13632608,40596.0,40595.0,0.11546182]
[1610146567071,0.13632608,40596.0,40595.0,0.05393352]
[1610146570675,0.13632608,40596.0,40595.0,4.11123352]
[1610146570874,0.13632608,40596.0,40595.0,4.07391921]
[1610146571174,0.13632608,40596.0,40595.0,4.11120999]
[1610146579582,0.13632608,40596.0,40595.0,0.05390999]
[1610146579981,0.13632608,40596.0,40594.0,0.01661445]
[1610146580382,0.13632608,40596.0,40595.0,0.016614]
[1610146580785,0.13632608,40596.0,40594.0,0.01661549]
[1610146580983,0.13632608,40596.0,40595.0,0.00023465]
[1610146581183,0.13632608,40596.0,40595.0,0.01661461]
[1610146581385,0.13632608,40596.0,40594.0,0.01661461]
[1610146581584,0.13632608,40596.0,40595.0,0.01661711]
[1610146582090,0.13632608,40596.0,40594.0,0.01661777]
[1610146582388,0.13632608,40596.0,40595.0,0.01661777]
[1610146582885,0.13632608,40596.0,40594.0,0.01661797]
[1610146583087,0.13632608,40596.0,40595.0,0.01661752]
[1610146583586,0.13632608,40596.0,40594.0,0.01661733]
[1610146583787,0.13632608,40596.0,40595.0,0.01652254]
[1610146584187,0.13632608,40596.0,40594.0,0.01652278]
[1610146584490,0.13632608,40596.0,40595.0,0.01652299]
[1610146585089,0.13632608,40596.0,40594.0,0.01652318]
[1610146585288,0.13632608,40596.0,40595.0,0.01652275]
[1610146585989,0.13632608,40596.0,40595.0,0.01655366]
[1610146586388,0.13632608,40596.0,40594.0,0.01655346]
[1610146586589,0.13632608,40596.0,40595.0,0.01655333]
[1610146587190,0.13632608,40596.0,40594.0,0.01655223]
[1610146587392,0.13632608,40596.0,40595.0,0.01655204]
[1610146587992,0.13632608,40596.0,40594.0,0.01655239]
[1610146588192,0.13632608,40596.0,40595.0,0.01655244]
[1610146588693,0.13632608,40596.0,40594.0,0.0165527]
[1610146588892,0.13632608,40596.0,40595.0,0.01631807]
[1610146589092,0.13632608,40596.0,40595.0,0.01655249]
[1610146589292,0.13632608,40596.0,40594.0,0.01655282]
[1610146589594,0.13632608,40596.0,40595.0,0.01655284]
[1610146589993,0.13632608,40596.0,40594.0,0.01655273]
[1610146590192,0.13632608,40596.0,40595.0,0.00023442]
[1610146590393,0.13632608,40596.0,40595.0,0.01655251]
[1610146590593,0.13632608,40596.0,40594.0,0.01655281]
[1610146590795,0.13632608,40596.0,40595.0,0.01655281]
[1610146591294,0.13632608,40596.0,40594.0,0.01655238]
[1610146591594,0.13632608,40596.0,40595.0,0.01655247]
[1610146592095,0.13632608,40596.0,40594.0,0.0165538]
[1610146592294,0.13632608,40596.0,40595.0,0.01655403]
[1610146592695,0.13632608,40596.0,40594.0,0.01655406]
[1610146592896,0.13632608,40596.0,40595.0,0.01655406]
[1610146593498,0.13632608,40596.0,40594.0,0.0165547]
[1610146593698,0.13632608,40596.0,40595.0,0.01655432]
[1610146594301,0.13632608,40596.0,40594.0,0.01655438]
[1610146594499,0.13632608,40596.0,40595.0,0.0165544]
[1610146595002,0.13632608,40596.0,40594.0,0.01655494]
[1610146595199,0.13632608,40596.0,40595.0,0.01655503]
[1610146595599,0.13632608,40596.0,40594.0,0.01655488]
[1610146595800,0.13632608,40596.0,40595.0,0.01655547]
[1610146596400,0.13632608,40596.0,40594.0,0.01655489]
[1610146596600,0.13632608,40596.0,40595.0,0.01655486]
[1610146597203,0.13632608,40596.0,40594.0,0.01655412]
[1610146597406,0.13632608,40596.0,40595.0,0.01655457]
[1610146598004,0.13632608,40596.0,40594.0,0.01655605]
[1610146598203,0.13632608,40596.0,40595.0,0.01655627]
[1610146598604,0.13632608,40596.0,40595.0,0.01632181]
[1610146598904,0.13632608,40596.0,40595.0,0.01655525]
[1610146599304,0.13632608,40596.0,40594.0,0.01655611]
[1610146599505,0.13632608,40596.0,40595.0,0.01655548]
[1610146600106,0.13632608,40596.0,40594.0,0.01655496]
[1610146600305,0.13632608,40596.0,40595.0,0.0165563]
[1610146601004,4.06002608,40596.0,40595.0,0.01655593]
[1610146601405,4.06002608,40596.0,40594.0,0.01655604]
[1610146601605,4.06002608,40596.0,40593.0,0.11178]
[1610146601606,0.13632608,40596.0,40595.0,0.01655661]
[1610146602208,0.13632608,40596.0,40594.0,0.01655809]
[1610146602407,0.13632608,40596.0,40595.0,0.01655731]
[1610146603008,0.13632608,40596.0,40594.0,0.01655749]
[1610146603210,0.13632608,40596.0,40595.0,0.01655681]
[1610146603811,0.13632608,40596.0,40594.0,0.01655817]
[1610146604010,0.13632608,40596.0,40595.0,0.01655822]
[1610146604412,0.13632608,40596.0,40594.0,0.01655687]
[1610146624640,0.13632608,40596.0,40595.0,3.0831]
[1610146625041,0.13632608,40596.0,40595.0,3.1368639]
[1610146629549,0.13632608,40596.0,40595.0,3.09965437]
[1610146639460,0.13632608,40596.0,40595.0,3.1368617]
[1610146648770,0.13571546,40596.0,40595.0,3.1368617]
[1610146673408,0.13571546,40596.0,40595.0,3.19820676]
[1610146675411,0.13571546,40596.0,40595.0,0.11510676]
[1610146675913,0.13571546,40596.0,40594.0,0.01652969]
[1610146676212,0.13571546,40596.0,40595.0,0.01652975]
[1610146676412,0.13571546,40596.0,40595.0,3.12222975]
[1610146676812,0.13571546,40596.0,40595.0,3.22074678]
[1610146683518,0.13571523,40596.0,40595.0,3.22074678]
[1610146711857,0.3,40610.0,40595.0,3.22074678]
[1610146712259,0.3,40610.0,40595.0,4.72074678]
[1610146712457,0.3,40610.0,40596.0,0.11458776]
[1610146713258,0.3,40610.0,40609.0,2.8256]
[1610146713659,0.3,40610.0,40609.0,2.87901776]
[1610146713859,0.3,40610.0,40609.0,4.51534384]
[1610146715361,0.32916478,40617.0,40609.0,4.57646791]
[1610146715761,0.32916478,40617.0,40610.0,0.07751957]
[1610146715961,0.32916478,40617.0,40616.0,1.63632608]
[1610146716160,0.32916478,40617.0,40616.0,2.27003608]
[1610146716460,0.32916478,40617.0,40616.0,2.32341472]
[1610146718663,0.282,40676.0,40616.0,2.32341472]
[1610146718863,0.282,40676.0,40616.0,1.80871472]
[1610146719063,0.282,40676.0,40617.0,0.05337155]
[1610146719266,0.282,40676.0,40645.0,2.9926]
[1610146719464,0.282,40676.0,40645.0,0.1181]
[1610146719667,0.282,40676.0,40665.0,3.3461]
[1610146719867,0.13632608,40666.0,40665.0,3.3461]
[1610146720265,0.13632608,40666.0,40665.0,3.3463338]
[1610146722871,0.13632608,40666.0,40665.0,3.34633375]
[1610146723880,0.13632608,40666.0,40665.0,3.48265983]
[1610146724473,0.2943,40696.0,40665.0,3.48265983]
[1610146724678,0.1106,40698.0,40665.0,0.13655983]
[1610146724874,0.2936,40713.0,40690.0,3.35]
[1610146725077,0.2936,40713.0,40685.0,0.07744]
[1610146725374,0.4147,40713.0,40692.0,3.9304]
[1610146725975,0.13632608,40693.0,40692.0,3.9304]
[1610146734682,0.13632608,40693.0,40685.0,0.07744]
[1610146734883,0.13632608,40693.0,40683.0,3.702]
[1610146735182,0.13632608,40693.0,40626.0,2.37407675]
[1610146735386,0.13632608,40693.0,40673.0,3.4374]
[1610146735583,0.13632608,40693.0,40673.0,3.51957]
[1610146735983,0.13632608,40676.0,40673.0,3.51957]
[1610146741895,0.13632608,40676.0,40673.0,0.08217]
[1610146742092,0.13632608,40676.0,40656.0,3.0516]
[1610146743893,0.13632608,40676.0,40645.0,0.1181]
[1610146744198,0.13632608,40648.0,40637.0,3.7777]
[1610146744400,0.13632608,40648.0,40615.0,0.2754]
[1610146744595,0.13632608,40648.0,40618.0,3.772]
[1610146746197,3.2868,40656.0,40633.0,0.13632608]
[1610146746396,3.2868,40656.0,40633.0,0.08124]
[1610146747599,3.2868,40656.0,40623.0,0.08645]
[1610146747800,3.3874,40656.0,40623.0,0.08645]
[1610146748100,0.13632608,40624.0,40623.0,0.08645]
[1610146749502,0.56862608,40624.0,40623.0,0.08645]
[1610146749804,0.56862608,40624.0,40603.0,3.0831]
[1610146750004,0.13632608,40604.0,40603.0,3.0831]
[1610146750199,0.13632608,40604.0,40592.0,0.13632608]
[1610146751999,0.13632608,40593.0,40592.0,0.13632608]
[1610146752399,4.0124,40614.0,40592.0,0.13632608]
[1610146752899,4.0124,40614.0,40592.0,0.24317608]
[1610146753301,4.0124,40614.0,40592.0,0.10685]
[1610146754101,0.13632608,40593.0,40592.0,0.24317608]
[1610146754302,0.13632608,40593.0,40592.0,0.10685]
[1610146757706,3.8996,40600.0,40592.0,0.10685]
[1610146757906,3.8996,40600.0,40579.0,2.7886]
[1610146758105,3.8996,40600.0,40587.0,0.13632608]
[1610146758511,3.8996,40600.0,40587.0,0.22008608]
[1610146760106,0.13632608,40588.0,40587.0,0.08376]
[1610146762009,3.8996,40600.0,40587.0,0.08376]
[1610146762209,0.13632608,40606.0,40592.0,0.13632608]
[1610146762410,0.13632608,40606.0,40593.0,3.2215]
[1610146764112,0.13632608,40606.0,40601.0,0.13632608]
[1610146764310,0.13632608,40606.0,40593.0,3.2215]
[1610146764511,0.13632608,40606.0,40599.0,0.08442]
[1610146766215,0.13632608,40601.0,40599.0,0.08442]
[1610146769516,0.13632608,40601.0,40594.0,3.6504]
[1610146770116,0.2891,40617.0,40596.0,0.13632608]
[1610146770617,0.2891,40617.0,40596.0,0.11766]
[1610146772120,0.13632608,40597.0,40596.0,0.11766]
[1610146775624,0.13632608,40597.0,40595.0,0.13632608]
[1610146775825,0.2891,40617.0,40595.0,0.13632608]
[1610146776124,0.13632608,40613.0,40609.0,0.13632608]
[1610146776327,0.09774,40645.0,40609.0,0.13632608]
[1610146776525,0.2742,40644.0,40622.0,2.9608]
[1610146776928,0.2742,40644.0,40622.0,2.6659907]
[1610146778130,0.13632608,40626.0,40622.0,2.80231678]
[1610146782637,0.2742,40644.0,40622.0,2.80231678]
[1610146783937,0.2742,40644.0,40622.0,0.13632608]
[1610146784136,0.2742,40644.0,40635.0,4.05]
[1610146784335,0.13632608,40636.0,40635.0,4.14632]
[1610146788642,0.13632608,40636.0,40635.0,0.09632]
[1610146789244,0.13632608,40636.0,40622.0,3.9466]
[1610146790346,0.13632608,40623.0,40622.0,3.9466]
[1610146790646,0.13632608,40623.0,40614.0,0.08185]
[1610146790846,4.03702608,40623.0,40614.0,0.08185]
[1610146791048,4.03702608,40623.0,40605.0,0.11156]
[1610146791247,4.03702608,40623.0,40602.0,4.0407]
[1610146791852,4.03702608,40623.0,40603.0,0.00023503]
[1610146792348,0.13632608,40605.0,40603.0,0.00023503]
[1610146792952,0.13632608,40605.0,40598.0,0.13632608]
[1610146793449,0.13632608,40605.0,40599.0,0.00023509]
[1610146796152,0.13632608,40605.0,40597.0,0.00023511]
[1610146796352,3.7046,40611.0,40600.0,0.00023511]
[1610146796552,3.7046,40611.0,40598.0,0.00023511]
[1610146796953,0.2836,40626.0,40601.0,0.00023511]
[1610146797157,0.2836,40626.0,40592.0,0.13632608]
[1610146797158,3.13,40625.0,40599.0,0.00023511]
[1610146797353,3.13,40625.0,40602.0,0.00023511]
[1610146797553,3.13,40625.0,40600.0,0.00023511]
[1610146797861,3.13,40625.0,40597.0,0.00023511]
[1610146798253,3.13,40625.0,40601.0,0.00023513]
[1610146798453,0.13632608,40602.0,40597.0,0.0167434]
[1610146798756,0.13632608,40602.0,40597.0,0.01650827]
[1610146800356,0.13632608,40602.0,40596.0,0.11764]
[1610146800554,0.13632608,40602.0,40598.0,0.00023512]
[1610146800854,0.13632608,40602.0,40597.0,0.00023512]
[1610146801054,0.13632608,40602.0,40599.0,0.00023512]
[1610146801255,0.13632608,40602.0,40598.0,0.00023514]
[1610146801656,0.13632608,40602.0,40600.0,0.00023514]
[1610146801956,0.13632608,40602.0,40595.0,0.10201]
[1610146801957,0.13632608,40602.0,40599.0,0.00023514]
[1610146802159,0.13632608,40602.0,40601.0,0.00023514]
[1610146802357,0.13632608,40602.0,40600.0,0.00023514]
[1610146802558,0.13632608,40602.0,40601.0,0.00023514]
[1610146802957,0.13632608,40602.0,40596.0,0.01674343]
[1610146803158,0.13632608,40602.0,40601.0,0.00023514]
[1610146803357,0.13632608,40602.0,40597.0,0.00023514]
[1610146803757,0.13632608,40602.0,40596.0,0.01674343]
[1610146803957,0.13632608,40602.0,40598.0,0.00023514]
[1610146804158,0.13632608,40602.0,40597.0,0.00023512]
[1610146804360,0.13632608,40602.0,40598.0,0.13632608]
[1610146804560,0.13632608,40602.0,40599.0,0.00023514]
[1610146804861,0.13632608,40602.0,40599.0,0.01674319]
[1610146806660,2.9242,40600.0,40596.0,0.01674432]
[1610146806861,2.9242,40600.0,40595.0,0.10201]
[1610146807061,2.9242,40600.0,40597.0,0.01674593]
[1610146807465,2.9242,40600.0,40596.0,0.01674728]
[1610146807762,2.9242,40600.0,40598.0,0.01674718]
[1610146807964,2.9242,40600.0,40595.0,0.1196]
[1610146807965,2.9242,40600.0,40597.0,0.01674569]
[1610146808463,2.9242,40600.0,40596.0,0.01674623]
[1610146808662,2.9242,40600.0,40598.0,0.01674579]
[1610146808865,2.9242,40600.0,40598.0,0.00023515]
[1610146809063,2.9242,40600.0,40597.0,0.01674762]
[1610146809264,2.9242,40600.0,40599.0,0.00023515]
[1610146809464,2.9242,40600.0,40598.0,0.0167483]
[1610146809665,2.9242,40600.0,40599.0,0.00023517]
[1610146809970,2.9242,40600.0,40596.0,0.01674831]
[1610146810366,2.9242,40600.0,40599.0,0.00023515]
[1610146810566,2.9242,40600.0,40597.0,0.01674682]
[1610146810765,2.9242,40600.0,40599.0,0.00023515]
[1610146810966,2.9242,40600.0,40598.0,0.00023515]
[1610146811266,2.9242,40600.0,40596.0,0.01674576]
[1610146811667,2.9242,40600.0,40599.0,0.00023515]
[1610146811967,2.9242,40600.0,40595.0,0.1196]
[1610146812167,2.9242,40600.0,40599.0,0.00023515]
[1610146812468,2.9242,40600.0,40595.0,0.1196]
[1610146812469,0.13632608,40600.0,40596.0,0.01674573]
[1610146812667,0.13632608,40600.0,40599.0,0.00023515]
[1610146812967,0.13632608,40600.0,40597.0,0.01674572]
[1610146813167,0.13632608,40600.0,40599.0,0.00023515]
[1610146813368,0.13632608,40600.0,40598.0,0.01674593]
[1610146813669,0.13632608,40600.0,40599.0,0.00023515]
[1610146814169,0.13632608,40600.0,40596.0,0.01674608]
[1610146814369,0.13632608,40600.0,40596.0,0.00023515]
[1610146814670,3.2717,40597.0,40573.0,3.5179]
[1610146814974,3.2717,40597.0,40575.0,0.08941]
[1610146815569,3.2717,40597.0,40576.0,0.01675193]
[1610146816470,0.13632608,40577.0,40576.0,0.01675193]
[1610146819573,0.13632608,40577.0,40576.0,0.01675211]
[1610146819774,3.64722608,40577.0,40576.0,0.00023538]
[1610146819975,0.13632608,40577.0,40576.0,0.00023538]
[1610146820179,3.93562608,40577.0,40576.0,0.00023538]
[1610146820376,0.13632608,40577.0,40549.0,0.01678051]
[1610146820577,3.37812608,40550.0,40549.0,0.01654507]
[1610146820779,3.37812608,40550.0,40541.0,0.01654842]
[1610146821079,3.08432608,40550.0,40549.0,0.01678523]
[1610146821279,3.08432608,40550.0,40549.0,0.1162]
[1610146824880,0.13632608,40550.0,40549.0,0.1162]
[1610146826081,0.63242608,40550.0,40549.0,0.1162]
[1610146826481,0.63242608,40550.0,40538.0,0.13632608]
[1610146827582,0.13632608,40550.0,40538.0,0.13632608]
[1610146827984,2.8238,40544.0,40538.0,0.13632608]
[1610146828587,0.13632608,40540.0,40538.0,0.13632608]
[1610146829391,3.9273,40569.0,40538.0,0.13632608]
[1610146829892,0.12382,40574.0,40538.0,0.25647608]
[1610146830091,0.2921,40583.0,40546.0,2.8209]
[1610146830491,0.13632608,40562.0,40560.0,0.13632608]
[1610146833095,0.13632608,40562.0,40546.0,2.8209]
[1610146834200,0.13632608,40562.0,40538.0,0.12015]
[1610146834600,0.13632608,40547.0,40538.0,0.25647608]
[1610146835702,0.13632608,40547.0,40539.0,0.5542]
[1610146836606,0.13632608,40540.0,40539.0,0.5542]
[1610146836806,3.7806,40567.0,40539.0,0.5542]
[1610146838507,0.13632608,40557.0,40556.0,0.13632608]
[1610146841009,0.13632608,40557.0,40547.0,3.9716]
[1610146841712,2.97891,40574.0,40547.0,3.9716]
[1610146842009,2.97891,40574.0,40547.0,4.09418]
[1610146842610,0.13632608,40559.0,40549.0,0.13632608]
[1610146844713,0.13632608,40550.0,40549.0,0.13632608]
[1610146846316,0.13632608,40550.0,40549.0,0.13655905]
[1610146850621,0.13632608,40550.0,40549.0,0.1523484]
[1610146857733,0.13632608,40550.0,40549.0,0.01602232]
[1610146858134,0.13632608,40550.0,40548.0,0.01602869]
[1610146858434,0.13632608,40550.0,40549.0,0.01602923]
[1610146859035,0.13632608,40550.0,40548.0,0.01603056]
[1610146859236,0.13632608,40550.0,40549.0,0.01603177]
[1610146859735,0.13632608,40550.0,40548.0,0.0160329]
[1610146860035,3.4026,40549.0,40547.0,0.12258]
[1610146860235,3.4026,40549.0,40538.0,0.12015]
[1610146860736,0.2851,40564.0,40539.0,0.0160344]
[1610146860935,3.6116,40549.0,40539.0,0.1105544]
[1610146861138,3.6116,40549.0,40539.0,0.09452]
[1610146861335,3.6116,40549.0,40540.0,0.01603492]
[1610146862636,0.13632608,40541.0,40540.0,0.01603492]
[1610146862838,4.25532608,40541.0,40540.0,0.01603492]
[1610146863643,4.119,40541.0,40540.0,0.01603492]
[1610146864837,4.25532608,40541.0,40540.0,0.01603492]
[1610146865040,4.25532608,40541.0,40540.0,0.01603853]
[1610146867741,4.25532608,40541.0,40540.0,0.00023312]
[1610146869046,0.13632608,40541.0,40540.0,0.00023312]
[1610146870547,3.32832608,40541.0,40540.0,0.00023312]
[1610146876150,3.32832608,40541.0,40539.0,0.09452]
[1610146876753,3.32832608,40541.0,40510.0,2.9462]
[1610146877051,0.13632608,40541.0,40495.0,2.4570473]
[1610146877353,3.4749,40518.0,40511.0,0.01604459]
[1610146877554,0.13632608,40541.0,40496.0,0.05251998]
[1610146877752,4.1094,40512.0,40496.0,0.12908498]
[1610146877953,4.1094,40512.0,40497.0,0.01604597]
[1610146878756,0.13632608,40498.0,40497.0,0.01604597]
[1610146879255,3.54782608,40498.0,40497.0,0.01604597]
[1610146881756,3.54782608,40498.0,40489.0,0.13632608]
[1610146881757,3.54782608,40498.0,40490.0,0.01605993]
[1610146881955,3.54782608,40498.0,40497.0,0.01605993]
[1610146882155,3.54782608,40498.0,40491.0,0.01605967]
[1610146882555,3.54782608,40498.0,40497.0,0.01605967]
[1610146882756,3.54782608,40498.0,40489.0,0.13632608]
[1610146883056,3.54782608,40498.0,40497.0,0.01605935]
[1610146883259,3.54782608,40498.0,40490.0,0.01605969]
[1610146883559,3.54782608,40498.0,40497.0,0.01605981]
[1610146883759,3.54782608,40498.0,40497.0,0.0002333]
[1610146883960,3.54782608,40498.0,40497.0,0.01582662]
[1610146884362,3.54782608,40498.0,40486.0,0.01582676]
[1610146884560,3.54782608,40498.0,40497.0,0.0160603]
[1610146884963,3.54782608,40498.0,40487.0,0.01606077]
[1610146885161,3.54782608,40498.0,40497.0,0.01606193]
[1610146885364,3.54782608,40498.0,40488.0,0.00023331]
[1610146885562,3.54782608,40498.0,40497.0,0.00023333]
[1610146885963,3.54782608,40498.0,40486.0,0.00023333]
[1610146886163,3.54782608,40498.0,40497.0,0.00023333]
[1610146886364,3.54782608,40498.0,40487.0,0.00023333]
[1610146886563,0.13632608,40498.0,40487.0,0.00023333]
[1610146886766,3.71932608,40488.0,40486.0,0.00023149]
[1610146886965,3.71932608,40488.0,40485.0,0.07773]
[1610146887164,3.71932608,40488.0,40487.0,0.00023149]
[1610146887564,3.71932608,40488.0,40486.0,0.00023149]
[1610146887764,3.71932608,40488.0,40485.0,0.07773]
[1610146887765,3.71932608,40488.0,40487.0,0.00023149]
[1610146888367,3.71932608,40488.0,40485.0,0.07773]
[1610146888368,0.13632608,40488.0,40486.0,0.00023151]
[1610146888568,0.13632608,40488.0,40487.0,0.00023182]
[1610146888769,3.82122608,40488.0,40487.0,0.00023182]
[1610146889070,3.82122608,40488.0,40486.0,0.00023182]
[1610146889269,3.82122608,40488.0,40487.0,0.00023184]
[1610146889572,3.82122608,40488.0,40476.0,0.01563213]
[1610146889768,3.82122608,40488.0,40487.0,0.00023184]
[1610146890269,3.82122608,40488.0,40476.0,0.00023184]
[1610146890471,0.13632608,40488.0,40487.0,0.00023184]
[1610146890669,3.89462608,40488.0,40477.0,0.00023187]
[1610146890870,3.89462608,40488.0,40475.0,0.08465]
[1610146892074,0.13632608,40488.0,40475.0,0.08465]
[1610146892672,2.7845,40486.0,40475.0,0.08465]
[1610146892872,0.13632608,40476.0,40475.0,0.08465]
[1610146893472,0.67892608,40476.0,40475.0,0.08465]
[1610146894073,0.67892608,40476.0,40457.0,0.13632608]
[1610146894276,0.13632608,40476.0,40457.0,0.13632608]
[1610146894575,0.13632608,40476.0,40458.0,0.00023187]
[1610146894774,0.13632608,40459.0,40458.0,0.10760187]
[1610146895174,0.13632608,40459.0,40458.0,0.10737]
[1610146895375,0.2896,40496.0,40458.0,0.10737]
[1610146895575,0.2896,40496.0,40463.0,4.012]
[1610146896375,0.2896,40496.0,40458.0,0.10737]
[1610146896577,0.2896,40496.0,40475.0,3.3425]
[1610146896779,0.13632608,40494.0,40490.0,0.13632608]
[1610146896976,0.13632608,40494.0,40491.0,0.4504]
[1610146897475,0.2871,40516.0,40490.0,0.13632608]
[1610146897680,0.2871,40516.0,40493.0,3.7883]
[1610146898377,3.1116,40535.0,40493.0,3.7883]
[1610146898579,0.72521521,40565.0,40490.0,0.13632608]
[1610146898580,0.2822,40565.0,40490.0,0.13632608]
[1610146898777,0.2956,40544.0,40514.0,0.13632608]
[1610146898978,0.41818,40544.0,40514.0,0.13632608]
[1610146899580,0.12258,40544.0,40514.0,0.13632608]
[1610146900180,0.10485,40553.0,40514.0,0.13632608]
[1610146900681,0.10485,40553.0,40514.0,0.22443608]
[1610146900883,0.13632608,40543.0,40535.0,0.13632608]
[1610146901484,0.10485,40553.0,40542.0,3.1874]
[1610146902786,0.10485,40553.0,40549.0,0.13632608]
[1610146904792,0.13632608,40551.0,40549.0,0.13632608]
[1610146908096,0.13632608,40551.0,40542.0,3.1874]
[1610146908895,0.38899,40563.0,40542.0,3.1874]
[1610146908896,0.13632608,40543.0,40542.0,3.1874]
[1610146910198,0.13632608,40543.0,40532.0,0.08013]
[1610146910395,0.13632608,40543.0,40529.0,3.2605]
[1610146910696,0.13632608,40543.0,40514.0,0.08811]
[1610146910897,0.13632608,40530.0,40516.0,0.13632608]
[1610146911096,0.13632608,40530.0,40514.0,0.08811]
[1610146911497,0.13632608,40530.0,40511.0,3.9759]
[1610146912703,0.13632608,40530.0,40489.0,0.11591]
[1610146912704,3.9911,40507.0,40489.0,0.11591]
[1610146912900,0.13632608,40501.0,40477.0,2.4301676]
[1610146913199,3.5722,40490.0,40477.0,2.4301676]
[1610146913399,3.5722,40490.0,40478.0,0.00023171]
[1610146913599,3.5722,40490.0,40470.0,2.43552418]
[1610146913899,3.5722,40490.0,40478.0,0.08015]
[1610146914903,0.13632608,40479.0,40478.0,0.08015]
[1610146915301,3.47262608,40479.0,40478.0,0.08015]
[1610146916002,0.13632608,40479.0,40478.0,0.08015]
[1610146916901,0.13632608,40479.0,40469.0,0.10318]
[1610146918402,3.2244,40488.0,40469.0,0.10318]
[1610146918601,0.12606,40490.0,40469.0,0.10318]
[1610146918807,0.13632608,40488.0,40482.0,0.13632608]
[1610146919104,2.9132,40521.0,40482.0,0.13632608]
[1610146919303,0.2927,40536.0,40482.0,0.13632608]
[1610146919504,0.2927,40536.0,40482.0,0.22591608]
[1610146919704,0.2927,40536.0,40492.0,4.0997]
[1610146920004,0.2927,40536.0,40492.0,4.22235]
[1610146920706,3.2333,40540.0,40492.0,4.22235]
[1610146920908,3.2333,40540.0,40516.0,0.13632608]
[1610146921109,0.1569,40551.0,40516.0,0.13632608]
[1610146922810,0.1569,40551.0,40514.0,3.4705]
[1610146922811,3.7191,40552.0,40523.0,0.13632608]
[1610146923515,0.1569,40569.0,40523.0,0.69062608]
[1610146923710,0.2813,40557.0,40525.0,3.7294]
[1610146923910,0.36481,40557.0,40525.0,3.7294]
[1610146925009,0.36481,40557.0,40531.0,0.13632608]
[1610146925711,0.36481,40557.0,40531.0,0.22103608]
[1610146926810,0.13632608,40532.0,40531.0,0.22103608]
[1610146928612,0.13632608,40532.0,40531.0,0.08471]
[1610146929012,0.13632608,40532.0,40520.0,0.08631]
[1610146929313,0.13632608,40532.0,40510.0,0.09766]
[1610146929514,0.13632608,40532.0,40508.0,3.2758]
[1610146930815,0.13632608,40509.0,40508.0,3.2758]
[1610146931517,0.13632608,40509.0,40474.0,0.2738]
[1610146931718,0.13632608,40509.0,40489.0,3.348]
[1610146933024,0.13632608,40496.0,40489.0,3.348]
[1610146933222,0.13632608,40496.0,40484.0,0.13632608]
[1610146933520,0.13632608,40496.0,40474.0,3.3652]
[1610146933922,0.13632608,40496.0,40475.0,0.00023193]
[1610146934122,0.13632608,40496.0,40475.0,0.12631193]
[1610146934724,0.13632608,40496.0,40476.0,0.00023196]
[1610146934925,0.13632608,40477.0,40475.0,0.12608]
[1610146937725,0.11828,40493.0,40475.0,0.12608]
[1610146938626,0.11828,40493.0,40476.0,0.00023199]
[1610146938923,0.11828,40493.0,40484.0,0.13632608]
[1610146939624,0.09082,40502.0,40484.0,0.22613608]
[1610146939824,0.44516367,40544.0,40484.0,0.22613608]
[1610146940024,2.8653,40540.0,40494.0,3.7274]
[1610146940225,2.8653,40540.0,40494.0,3.83553]
[1610146940927,2.8653,40540.0,40498.0,0.13632608]
[1610146942427,2.8653,40540.0,40499.0,0.00023189]
[1610146942726,2.8653,40540.0,40498.0,0.13632608]
[1610146943028,2.8653,40540.0,40507.0,0.4497]
[1610146943227,3.304,40551.0,40509.0,3.9041]
[1610146944530,0.1569,40554.0,40494.0,0.10813]
[1610146944728,3.2894,40535.0,40494.0,0.10813]
[1610146944930,3.2894,40535.0,40495.0,0.0002319]
[1610146945128,0.13632608,40496.0,40495.0,0.0002319]
[1610146945530,0.13632608,40496.0,40494.0,0.10813]
[1610146945731,0.13632608,40496.0,40492.0,3.6838]
[1610146947132,0.13632608,40496.0,40493.0,0.00022864]
[1610146948032,0.10896,40511.0,40493.0,0.00022864]
[1610146949139,0.13632608,40501.0,40493.0,0.00022864]
[1610146951239,0.13632608,40494.0,40493.0,0.00022864]
[1610146952243,0.13632608,40494.0,40487.0,3.4249]
[1610146952439,0.13632608,40494.0,40493.0,0.00022882]
[1610146952744,0.13632608,40494.0,40488.0,0.00022882]
[1610146952941,0.13632608,40494.0,40493.0,0.00022884]
[1610146953142,0.13632608,40494.0,40489.0,0.00022884]
[1610146953441,0.13632608,40494.0,40493.0,0.00022884]
[1610146953642,0.13632608,40494.0,40490.0,0.00022884]
[1610146953843,0.13632608,40494.0,40487.0,3.4249]
[1610146954246,0.13632608,40494.0,40488.0,0.00022884]
[1610146955146,3.13282608,40489.0,40488.0,0.00022884]
[1610146955545,3.13282608,40489.0,40476.0,0.00022888]
[1610146955746,3.13282608,40489.0,40488.0,0.0002289]
[1610146956046,3.13282608,40489.0,40477.0,0.0002289]
[1610146956247,3.13282608,40489.0,40466.0,0.10907]
[1610146956548,3.13282608,40489.0,40478.0,0.00022892]
[1610146956848,3.13282608,40489.0,40467.0,0.00022892]
[1610146957048,0.13632608,40468.0,40466.0,0.10907]
[1610146957547,0.13632608,40468.0,40467.0,0.00022893]
[1610146958148,0.13632608,40468.0,40466.0,0.10907]
[1610146958350,0.13632608,40468.0,40467.0,0.00022896]